bitfinex-derivatives/quotes_ETHF0:USTF0_20250926
["timestamp","ask_amount","ask_price","bid_price","bid_amount"]
[1758853056109,0.3261,3954.9,3954.5,0.1267]
[1758853056605,0.0252,3955.3,3954.8,0.45485]
[1758853056820,0.54931913,3955.2,3955.1,0.3204]
[1758853057009,0.0252,3955.3,3955.0,0.1267]
[1758853057207,0.0252,3955.3,3955.1,0.77522]
[1758853057516,0.0252,3955.3,3955.2,0.3204]
[1758853059223,0.0252,3955.3,3955.2,5.3204]
[1758853059410,0.0252,3955.3,3955.2,0.3204]
[1758853059610,0.0252,3955.3,3955.2,0.5834]
[1758853059810,0.0252,3955.3,3955.2,5.5834]
[1758853060219,0.0252,3955.3,3955.2,46.3834]
[1758853060422,0.21483649,3956.7,3956.3,0.3204]
[1758853060624,0.54969513,3956.6,3956.5,0.58136]
[1758853060815,0.3261,3956.9,3956.3,0.45468]
[1758853061119,0.3261,3957.3,3956.8,0.45463]
[1758853061321,0.5497409,3957.2,3956.7,0.3204]
[1758853061618,0.3261,3957.4,3956.7,0.3204]
[1758853061619,0.8758409,3957.1,3956.7,0.3204]
[1758853061818,0.5497409,3957.0,3956.5,0.1267]
[1758853062019,0.1305,3957.5,3956.5,0.1267]
[1758853062020,0.3261,3957.4,3956.8,0.45463]
[1758853062320,0.3261,3957.2,3956.9,0.3204]
[1758853062525,0.8757898,3957.1,3956.9,0.3204]
[1758853062822,0.5496898,3957.0,3956.9,0.3204]
[1758853063817,0.3261,3957.6,3957.1,0.3204]
[1758853064120,0.45459,3957.3,3956.7,0.3204]
[1758853064317,0.3261,3957.1,3956.6,0.71766]
[1758853064530,0.3261,3957.1,3956.7,0.3204]
[1758853064722,0.3261,3957.1,3956.6,0.263]
[1758853065225,0.3261,3957.1,3957.0,0.3204]
[1758853065619,0.55002585,3957.4,3957.0,0.3204]
[1758853065925,0.55002436,3957.3,3956.9,0.45461]
[1758853066227,0.87612436,3957.2,3957.1,0.3204]
[1758853067329,0.47694,3957.7,3957.6,0.45454]
[1758853067330,0.0224,3957.7,3957.6,0.45454]
[1758853067621,0.37391766,3958.3,3957.6,0.3204]
[1758853067928,0.3261,3958.9,3957.8,0.77492]
[1758853068530,0.3261,3958.9,3957.8,5.77492]
[1758853069321,0.45441,3958.8,3957.8,6.03792]
[1758853069922,0.3261,3958.9,3957.8,6.03792]
[1758853070933,0.7805,3958.9,3957.8,6.03792]
[1758853071230,0.0177,3958.6,3957.8,6.03792]
[1758853072027,0.3261,3958.3,3957.8,0.3204]
[1758853072227,0.3481,3957.9,3957.8,0.3204]
[1758853072531,0.3481,3957.9,3957.4,0.263]
[1758853072532,0.3261,3957.5,3957.4,0.263]
[1758853073219,0.3481,3957.9,3957.5,0.1267]
[1758853073420,0.3481,3957.9,3957.1,0.4546]
[1758853073421,0.3261,3957.7,3957.1,0.4546]
[1758853073621,0.45453,3957.8,3957.2,0.5834]
[1758853073822,0.3261,3957.7,3957.2,0.5834]
[1758853074018,0.45453,3957.8,3957.2,0.263]
[1758853074230,0.3261,3957.7,3957.2,0.263]
[1758853074431,0.45453,3957.8,3957.2,0.263]
[1758853074727,0.022,3957.9,3957.3,0.3204]
[1758853074929,0.47651,3957.9,3957.2,0.45458]
[1758853075132,0.3481,3957.9,3957.1,0.3204]
[1758853075333,0.022,3957.9,3957.1,0.3204]
[1758853076527,0.022,3957.9,3957.3,0.45457]
[1758853076724,0.022,3957.9,3957.5,0.1267]
[1758853076922,0.3481,3957.9,3957.6,0.3204]
[1758853077127,0.3481,3957.9,3957.5,0.1267]
[1758853077128,0.022,3957.9,3957.5,0.1267]
[1758853077734,0.022,3957.9,3957.0,0.1267]
[1758853077735,0.3261,3957.4,3957.0,0.5813]
[1758853078037,0.3261,3957.6,3957.2,0.3204]
[1758853078228,0.3261,3957.5,3957.2,0.3204]
[1758853078430,0.45454,3957.7,3957.2,0.3204]
[1758853078836,0.3261,3957.6,3957.2,0.3204]
[1758853079139,0.45457,3957.4,3956.6,0.77506]
[1758853079434,0.78069,3957.3,3956.7,0.263]
[1758853079933,0.4546,3957.1,3956.7,0.5834]
[1758853080233,0.3261,3956.9,3956.7,0.263]
[1758853080437,0.3384,3957.4,3956.8,0.3224]
[1758853080633,0.3384,3957.4,3956.5,0.1267]
[1758853080634,0.3384,3957.8,3956.9,0.188]
[1758853080935,0.47651,3957.9,3957.5,0.1277]
[1758853081124,0.54990365,3957.8,3957.6,0.3224]
[1758853081330,0.47651,3957.9,3957.5,0.1277]
[1758853081331,0.81491,3957.9,3957.5,0.1277]
[1758853081526,0.47651,3957.9,3957.5,0.1277]
[1758853081728,0.79293,3957.8,3957.5,0.1277]
[1758853081926,0.022,3957.9,3957.6,0.3224]
[1758853082124,0.3384,3957.8,3957.6,0.3224]
[1758853082327,0.022,3957.9,3957.6,0.3224]
[1758853082537,0.022,3957.9,3957.7,0.45452]
[1758853082733,0.022,3957.9,3957.5,0.1277]
[1758853082734,0.3604,3957.9,3957.5,0.1277]
[1758853082940,0.022,3957.9,3957.7,0.45452]
[1758853083234,0.022,3957.9,3957.8,0.3224]
[1758853083637,0.0177,3958.6,3958.5,0.4501]
[1758853083836,0.0177,3958.6,3958.5,5.42956882]
[1758853084137,0.4704,3959.5,3958.7,0.3433]
[1758853084138,0.45436,3959.3,3958.7,0.3433]
[1758853084346,0.55006494,3959.2,3958.6,0.3433]
[1758853084639,0.86306494,3959.1,3958.7,0.3433]
[1758853084827,0.86306494,3959.1,3958.6,0.3433]
[1758853084828,0.313,3959.1,3958.6,0.3433]
[1758853085032,0.132,3960.0,3958.6,0.3433]
[1758853085033,1.81723631,3960.6,3960.5,0.1277]
[1758853085233,7.17110316,3960.6,3960.5,0.069]
[1758853085429,0.313,3960.6,3960.5,5.0]
[1758853085635,0.313,3960.6,3960.5,46.063]
[1758853085833,0.313,3960.6,3960.5,41.063]
[1758853086549,0.313,3960.6,3960.5,40.8]
[1758853086838,0.4407,3960.5,3960.4,0.263]
[1758853087236,0.4407,3960.5,3960.4,41.063]
[1758853087741,0.4407,3960.5,3960.4,0.263]
[1758853088838,0.4407,3960.5,3959.8,0.71728]
[1758853088839,0.313,3959.9,3959.8,0.71728]
[1758853090042,0.1277,3959.5,3959.2,0.45435]
[1758853090240,0.1277,3959.5,3959.2,5.43381882]
[1758853090635,0.313,3959.4,3959.3,40.8]
[1758853091136,0.4407,3959.5,3959.4,0.45433]
[1758853091341,0.1277,3960.0,3959.9,0.45428]
[1758853091540,0.1277,3960.0,3959.9,5.43374882]
[1758853091741,0.67050746,3960.0,3959.9,5.43374882]
[1758853091943,0.1277,3960.0,3959.9,5.43374882]
[1758853092138,0.1277,3960.5,3960.4,0.45422]
[1758853092339,0.1277,3960.5,3960.4,5.43368882]
[1758853092941,0.1277,3960.5,3960.4,10.43368882]
[1758853093546,0.4407,3960.5,3960.4,51.23368882]
[1758853093847,0.0174,3961.2,3960.4,51.23368882]
[1758853093848,0.0174,3961.2,3960.9,0.45416]
[1758853094148,0.0174,3961.2,3960.9,5.43362882]
[1758853095250,1e-05,3961.0,3960.9,10.43362882]
[1758853095444,0.0174,3961.2,3961.1,0.45414]
[1758853095947,0.3304,3961.2,3961.1,0.45414]
[1758853096748,0.3304,3961.2,3961.1,0.71714]
[1758853097747,0.3304,3961.2,3961.1,0.45414]
[1758853098044,0.1277,3961.0,3960.7,4.71646882]
[1758853098248,0.313,3960.9,3960.7,4.71646882]
[1758853098443,0.1277,3960.5,3960.4,0.45421]
[1758853098647,0.4407,3960.5,3960.4,0.71721]
[1758853100044,0.1277,3960.5,3960.2,5.17069882]
[1758853100248,0.313,3960.4,3960.3,41.063]
[1758853101743,0.313,3960.4,3960.3,45.77946882]
[1758853102445,0.313,3960.4,3960.3,0.263]
[1758853102850,0.1277,3960.0,3959.8,4.71646882]
[1758853103049,0.313,3959.9,3959.8,40.8]
[1758853103351,0.313,3959.9,3959.8,41.063]
[1758853103751,0.313,3959.9,3959.8,40.8]
[1758853103941,0.313,3959.9,3959.8,0.263]
[1758853104550,0.1277,3960.0,3959.7,40.8]
[1758853104753,0.1277,3960.0,3959.8,0.263]
[1758853104754,0.313,3959.9,3959.8,0.263]
[1758853105358,0.313,3959.9,3958.4,1.13611]
[1758853105359,0.313,3958.9,3958.7,4.71646882]
[1758853105651,0.313,3958.9,3958.8,0.7174]
[1758853108053,0.313,3958.9,3958.8,0.263]
[1758853108247,5.85124876,3958.9,3958.8,0.263]
[1758853108750,0.85124876,3958.9,3958.8,0.263]
[1758853111546,0.85124876,3958.9,3958.8,0.7174]
[1758853112857,0.53824876,3958.9,3958.5,5.17089882]
[1758853113048,0.3146,3958.9,3958.8,0.263]
[1758853113854,0.3146,3958.9,3958.4,40.8]
[1758853113855,0.4407,3958.5,3958.4,40.8]
[1758853114054,0.1261,3958.5,3958.4,0.263]
[1758853114247,0.4407,3958.5,3958.4,0.263]
[1758853116354,0.4407,3958.5,3958.3,41.25445]
[1758853116355,0.3146,3958.4,3958.3,41.25445]
[1758853116548,0.3146,3958.4,3958.3,0.263]
[1758853117046,0.3146,3957.9,3957.8,40.8]
[1758853117356,0.3146,3957.9,3957.8,41.51752]
[1758853117749,0.1261,3957.5,3957.2,4.71646882]
[1758853118051,0.3146,3956.9,3956.8,0.45463]
[1758853118251,0.3146,3956.9,3956.8,41.51763]
[1758853118452,0.3146,3956.9,3956.8,46.51763]
[1758853119452,0.3146,3956.9,3956.8,41.51763]
[1758853120550,0.3146,3956.9,3956.8,41.25463]
[1758853120751,0.3146,3956.9,3956.8,46.23409882]
[1758853122046,0.1261,3957.0,3956.8,51.23409882]
[1758853123448,0.1261,3957.0,3956.8,46.23409882]
[1758853123845,0.1261,3957.5,3957.4,0.45456]
[1758853124050,0.1261,3957.5,3957.4,5.43402882]
[1758853124254,0.4407,3957.5,3957.4,5.43402882]
[1758853124460,0.3146,3956.9,3956.8,41.25462]
[1758853124644,0.3146,3956.9,3956.8,41.51762]
[1758853128558,0.3146,3956.9,3956.8,41.063]
[1758853130958,0.3146,3956.9,3956.8,40.8]
[1758853131158,0.3146,3956.9,3956.8,41.063]
[1758853134153,0.1261,3957.0,3956.9,0.45462]
[1758853134360,0.0252,3957.2,3957.1,0.4546]
[1758853134559,0.0252,3957.2,3957.1,0.7176]
[1758853134954,0.1261,3957.5,3957.4,0.45456]
[1758853135158,0.1261,3957.5,3957.4,0.71756]
[1758853136155,0.4407,3957.5,3957.4,0.71756]
[1758853138260,0.4407,3957.5,3957.4,0.45456]
[1758853138564,0.98566334,3957.5,3957.4,0.71756]
[1758853139958,0.98566334,3957.5,3957.4,0.45456]
[1758853140160,0.3256,3956.9,3956.8,41.25463]
[1758853140360,0.3256,3956.9,3956.8,41.51763]
[1758853141968,0.1308,3957.0,3956.8,46.51763]
[1758853142270,0.1261,3957.5,3957.4,0.45456]
[1758853142465,0.1261,3957.5,3957.4,0.71756]
[1758853142664,0.67146133,3957.5,3957.4,0.71756]
[1758853143264,0.1261,3957.5,3957.4,0.71756]
[1758853144067,0.1261,3958.0,3957.9,0.45451]
[1758853144260,0.1261,3958.0,3957.9,5.97073285]
[1758853144570,0.0252,3958.2,3958.1,0.45448]
[1758853144770,0.0252,3958.2,3958.1,41.51748]
[1758853145068,0.1261,3958.5,3958.1,40.8]
[1758853145372,0.45447,3958.3,3958.1,41.063]
[1758853145567,0.54542919,3958.2,3958.1,41.063]
[1758853145764,0.136,3958.0,3956.6,5.25322285]
[1758853145972,0.136,3957.0,3956.9,0.45462]
[1758853146169,0.4506,3957.0,3956.9,0.71762]
[1758853146369,0.4506,3957.0,3956.9,41.51762]
[1758853146571,0.4506,3957.0,3956.9,40.8]
[1758853146863,0.4506,3957.0,3956.9,41.063]
[1758853147076,0.99656759,3957.0,3956.9,41.063]
[1758853147265,0.99656759,3957.0,3956.9,0.263]
[1758853147460,0.99656759,3957.0,3956.8,0.45462]
[1758853147461,0.136,3956.0,3955.8,5.70797285]
[1758853147662,0.136,3956.5,3956.4,0.45468]
[1758853147862,0.68212294,3956.5,3955.2,39.411]
[1758853148063,0.68212294,3956.5,3955.3,0.45481]
[1758853148064,0.136,3955.5,3955.3,0.45481]
[1758853148264,0.136,3955.5,3955.3,0.71781]
[1758853148465,0.136,3956.0,3955.4,41.93699]
[1758853148666,0.136,3956.0,3955.9,0.45474]
[1758853148869,0.136,3956.0,3955.9,0.71774]
[1758853149063,0.136,3956.5,3956.4,0.45468]
[1758853149264,0.136,3956.5,3956.4,0.71768]
[1758853149468,0.136,3956.5,3956.4,5.97090285]
[1758853149669,0.4506,3956.5,3956.4,5.97090285]
[1758853150770,0.4506,3956.5,3956.4,46.77090285]
[1758853151168,0.4506,3956.5,3956.4,41.25468]
[1758853151474,0.4506,3956.5,3956.4,0.71768]
[1758853151676,0.99628986,3956.5,3956.4,0.71768]
[1758853151874,0.99628986,3956.5,3956.4,41.51768]
[1758853152067,0.4506,3956.5,3956.4,41.51768]
[1758853155074,0.4506,3956.5,3956.4,41.25468]
[1758853155270,5.4506,3956.5,3956.4,0.263]
[1758853155476,6.45083525,3956.5,3956.0,0.45472]
[1758853155678,0.3146,3956.3,3956.1,0.263]
[1758853155879,0.86016525,3956.2,3956.1,41.063]
[1758853156477,0.3146,3956.2,3956.1,41.063]
[1758853156878,0.3146,3956.2,3956.1,0.263]
[1758853157373,0.136,3956.5,3956.0,40.8]
[1758853157576,0.45475,3955.9,3955.5,0.45478]
[1758853157773,0.45475,3955.9,3955.6,0.263]
[1758853157774,0.3146,3955.7,3955.6,0.263]
[1758853157971,0.86004533,3955.7,3955.6,0.263]
[1758853158172,0.136,3955.0,3954.5,0.45489]
[1758853158375,0.136,3955.0,3954.7,0.45486]
[1758853158569,0.3146,3954.9,3954.8,0.263]
[1758853159679,5.8601275,3954.9,3954.8,0.263]
[1758853159882,0.136,3954.5,3954.4,0.263]
[1758853160082,0.136,3954.5,3954.4,41.063]
[1758853160281,0.136,3954.5,3954.4,41.51791]
[1758853160581,0.136,3954.5,3954.4,46.51791]
[1758853161174,0.4506,3954.5,3954.4,46.51791]
[1758853161680,0.4506,3954.5,3954.4,41.51791]
[1758853162579,0.4506,3954.5,3953.5,12.72219804]
[1758853162580,0.4506,3953.0,3952.8,0.45508]
[1758853162783,0.4506,3953.0,3952.9,0.2892982]
[1758853162977,0.4506,3953.0,3952.9,41.0892982]
[1758853163179,0.4506,3953.0,3952.9,40.8252982]
[1758853163481,0.4506,3953.0,3952.9,41.0892982]
[1758853164182,0.4506,3953.0,3952.9,0.2892982]
[1758853169679,0.3146,3952.8,3952.5,40.8]
[1758853169876,0.3146,3952.8,3952.6,0.264]
[1758853171184,0.7697,3952.8,3952.6,0.264]
[1758853171382,0.3146,3952.8,3952.6,0.264]
[1758853172187,0.7697,3952.8,3952.6,0.264]
[1758853172889,0.3146,3952.8,3952.6,0.264]
[1758853174091,0.136,3953.0,3952.6,0.71911]
[1758853174287,0.3442,3952.9,3952.8,0.45508]
[1758853175493,0.136,3953.0,3952.7,0.4551]
[1758853176089,0.3442,3952.9,3952.8,0.45509]
[1758853177191,0.79929,3952.9,3952.6,0.264]
[1758853178387,0.3442,3952.9,3952.2,40.8]
[1758853178593,0.3442,3952.4,3952.3,0.263]
[1758853178895,0.3442,3952.4,3952.2,40.8]
[1758853179187,0.3442,3952.3,3952.2,40.8]
[1758853179392,0.3442,3952.3,3952.2,41.063]
[1758853180290,0.3442,3952.3,3952.2,46.063]
[1758853180494,0.3442,3952.3,3952.2,41.063]
[1758853180994,0.1269,3952.5,3952.2,46.063]
[1758853181294,0.136,3953.0,3952.2,46.31622285]
[1758853181491,0.136,3953.0,3952.2,41.063]
[1758853181492,0.1269,3952.5,3952.2,41.063]
[1758853181790,0.1269,3952.5,3952.3,0.71815]
[1758853183195,0.3442,3952.4,3952.3,0.71815]
[1758853183488,0.3442,3952.4,3952.3,0.263]
[1758853186991,0.1269,3952.5,3952.3,0.71814]
[1758853187192,0.89657766,3952.4,3952.3,0.71814]
[1758853187393,0.89657766,3952.4,3952.3,0.263]
[1758853188596,0.4711,3951.5,3951.4,41.25525]
[1758853188795,0.4711,3951.5,3951.4,41.51825]
[1758853190494,0.4711,3951.5,3951.4,41.25525]
[1758853190800,1.02683464,3951.5,3951.4,41.063]
[1758853191695,0.4964,3952.0,3951.9,0.4552]
[1758853191899,0.4964,3952.0,3951.9,0.7182]
[1758853192698,0.0253,3952.0,3951.9,10.97142285]
[1758853194098,0.4964,3952.0,3951.9,0.4552]
[1758853194291,0.4964,3952.0,3951.9,0.7182]
[1758853195198,0.4964,3952.0,3951.9,0.263]
[1758853196700,0.4964,3952.0,3951.2,39.461]
[1758853196701,0.3442,3951.4,3951.2,0.45528]
[1758853196902,0.3442,3951.4,3951.3,0.263]
[1758853199802,5.3442,3951.4,3951.3,0.263]
[1758853200000,0.3442,3950.9,3950.8,0.45532]
[1758853200199,0.3442,3950.9,3950.8,0.71832]
[1758853200599,0.3442,3950.9,3950.6,40.8]
[1758853200600,0.3443,3950.9,3950.6,40.8]
[1758853200803,0.3443,3950.9,3950.7,0.263]
[1758853200996,0.1269,3951.0,3950.7,0.263]
[1758853201199,0.3443,3950.9,3950.8,0.45532]
[1758853202607,0.3443,3950.9,3950.7,0.263]
[1758853202809,0.3443,3950.9,3950.8,0.45532]
[1758853203307,0.3443,3950.9,3950.7,0.263]
[1758853203702,0.5535584,3950.8,3950.7,0.263]
[1758853203907,0.8746584,3950.8,3950.7,0.263]
[1758853204110,0.3211,3950.7,3950.6,40.8]
[1758853204307,0.8746584,3950.7,3950.6,41.063]
[1758853205006,0.1363,3950.5,3950.1,0.4554]
[1758853205311,0.3211,3950.4,3950.2,0.263]
[1758853205501,0.3211,3950.4,3950.3,40.8]
[1758853206003,0.87440781,3950.4,3950.3,40.8]
[1758853206808,0.3211,3950.4,3950.3,41.25538]
[1758853207400,0.3211,3950.4,3950.3,45.98714392]
[1758853207603,0.4733,3951.0,3950.9,0.45531]
[1758853207813,0.4733,3951.0,3950.9,0.71831]
[1758853209608,0.4733,3951.0,3950.9,0.263]
[1758853209810,0.4733,3951.0,3950.6,0.45535]
[1758853209811,0.3211,3950.4,3950.3,40.8]
[1758853210012,0.3211,3950.4,3950.3,41.063]
[1758853212313,0.87440488,3950.4,3950.3,41.063]
[1758853213910,0.3211,3949.9,3949.3,4.73176392]
[1758853214108,0.1363,3949.5,3949.4,0.263]
[1758853214302,0.1363,3949.5,3949.3,0.45549]
[1758853214505,0.1363,3949.5,3949.4,41.063]
[1758853214715,0.4574,3949.5,3949.4,41.063]
[1758853215415,0.1363,3950.0,3949.4,41.063]
[1758853215609,0.3211,3949.9,3949.8,0.45544]
[1758853215808,0.3211,3949.9,3949.8,0.71844]
[1758853216111,0.1363,3950.0,3949.8,0.71844]
[1758853216112,0.3211,3950.4,3950.3,0.45538]
[1758853216417,0.8741109,3950.4,3950.3,0.71838]
[1758853216711,0.3211,3950.4,3950.3,0.263]
[1758853217916,0.1363,3950.5,3950.4,0.45537]
[1758853218309,0.1522,3951.0,3950.4,5.0]
[1758853218513,0.3211,3950.9,3950.5,0.263]
[1758853218718,0.4733,3951.0,3950.8,5.18708392]
[1758853219017,0.4733,3951.0,3950.9,41.063]
[1758853219420,0.1522,3951.0,3950.9,46.063]
[1758853219713,0.0253,3951.0,3950.9,46.063]
[1758853219917,0.4827,3951.0,3950.9,41.063]
[1758853220509,0.1616,3951.0,3950.9,41.063]
[1758853220713,0.1616,3951.0,3950.9,46.063]
[1758853220917,0.4827,3951.0,3950.9,41.063]
[1758853222815,0.4827,3951.0,3950.9,40.8]
[1758853223212,0.4827,3951.0,3950.9,41.063]
[1758853224417,0.3211,3950.9,3950.6,0.45534]
[1758853224616,0.3211,3950.8,3950.7,0.71833]
[1758853224809,0.3211,3950.8,3950.7,5.45009392]
[1758853225210,0.1616,3951.0,3950.9,0.45531]
[1758853225413,0.1363,3951.0,3950.9,0.71831]
[1758853226621,0.3211,3951.4,3951.3,0.45527]
[1758853226822,0.3211,3951.4,3951.3,0.71827]
[1758853229715,0.3211,3951.4,3951.3,0.263]
[1758853229922,0.89294961,3951.4,3951.3,0.263]
[1758853230419,0.89294961,3951.4,3950.4,41.25537]
[1758853230420,0.4598,3950.5,3950.4,41.25537]
[1758853230622,0.4598,3950.5,3950.4,41.51837]
[1758853232421,0.4598,3950.5,3950.4,41.063]
[1758853233617,0.4598,3950.5,3950.4,0.263]
[1758853235920,0.885,3950.5,3950.4,0.263]
[1758853237529,0.4598,3950.5,3950.4,0.263]
[1758853239726,0.885,3950.5,3950.4,0.263]
[1758853239928,0.4598,3950.5,3950.4,0.263]
[1758853242333,0.6699,3950.5,3950.4,0.263]
[1758853242536,0.3277,3950.4,3950.3,45.98713392]
[1758853242737,0.3277,3950.4,3950.3,46.25013392]
[1758853245246,0.4598,3950.5,3950.3,46.25013392]
[1758853245642,0.3277,3950.4,3950.3,46.25013392]
[1758853249150,0.3277,3950.4,3950.3,40.8]
[1758853249342,0.3277,3950.4,3950.3,41.063]
[1758853249546,0.3277,3950.4,3950.3,41.51838]
[1758853249849,0.3277,3950.4,3950.3,41.063]
[1758853250549,0.90368894,3950.4,3950.3,41.063]
[1758853251851,1.32888894,3950.4,3950.3,0.263]
[1758853253249,1.32888894,3950.4,3950.2,41.25538]
[1758853253250,0.78308,3950.3,3950.2,40.8]
[1758853253450,0.90368894,3950.3,3950.2,41.063]
[1758853253647,0.1321,3949.0,3948.0,3.16092572]
[1758853253847,0.1321,3949.0,3947.9,0.02533024]
[1758853253848,0.3277,3948.8,3948.7,0.45556]
[1758853254045,0.3277,3948.8,3948.7,0.71856]
[1758853254446,0.4598,3949.5,3949.4,0.45549]
[1758853254648,0.4598,3949.5,3949.4,0.71849]
[1758853255047,0.4598,3949.5,3949.4,0.263]
[1758853257044,0.4598,3949.5,3948.6,80.281]
[1758853257045,0.1321,3949.0,3948.6,80.281]
[1758853257349,0.1321,3949.0,3948.8,0.45555]
[1758853257350,0.5378,3948.9,3948.8,0.45555]
[1758853259255,0.5378,3948.9,3948.7,0.263]
[1758853259256,0.7529,3948.9,3948.7,0.263]
[1758853259453,0.3277,3948.8,3948.7,0.71856]
[1758853261468,0.5378,3948.8,3948.7,0.71856]
[1758853262153,0.3389,3949.3,3949.2,0.45551]
[1758853262355,0.1321,3949.5,3949.4,0.45549]
[1758853262550,0.1321,3949.5,3949.4,0.71849]
[1758853262952,0.471,3949.5,3949.4,0.71849]
[1758853263357,0.8994,3949.5,3949.4,0.71849]
[1758853263558,0.6794,3949.5,3949.4,0.71849]
[1758853263766,0.8994,3949.5,3949.4,41.51849]
[1758853264765,0.471,3949.5,3949.4,41.51849]
[1758853264965,0.3161,3949.9,3949.8,0.45544]
[1758853265167,0.3161,3949.9,3949.8,0.71844]
[1758853265755,0.1574,3950.5,3949.8,5.99059057]
[1758853265961,0.0253,3950.5,3950.4,0.49977]
[1758853266163,0.0253,3950.5,3950.4,0.76277]
[1758853266463,0.3809,3950.5,3950.4,0.75217]
[1758853266660,0.3809,3950.5,3950.4,41.55217]
[1758853267261,0.1511,3950.5,3950.4,41.55217]
[1758853267772,0.4672,3950.5,3950.4,41.55217]
[1758853269372,0.6749,3951.0,3950.9,0.48911]
[1758853269572,0.6749,3951.0,3950.9,0.75211]
[1758853269769,0.8857,3951.0,3950.9,0.75211]
[1758853270271,0.8857,3951.0,3950.9,0.73521]
[1758853271062,0.6717,3951.5,3951.4,0.45526]
[1758853271260,0.6717,3951.5,3951.4,0.73516]
[1758853271470,0.4419,3951.5,3951.4,0.75206]
[1758853271971,0.6717,3951.5,3951.4,0.75206]
[1758853272675,0.6717,3951.5,3951.4,41.55206]
[1758853273268,0.3556,3952.0,3951.9,0.4721]
[1758853273470,0.4419,3952.0,3951.9,0.752]
[1758853273975,0.6717,3952.0,3951.9,0.752]
[1758853274466,0.4419,3952.0,3951.9,0.752]
[1758853274869,0.3414,3952.2,3952.1,0.48897]
[1758853275071,0.3414,3952.2,3952.1,0.75197]
[1758853275370,0.1258,3953.5,3952.4,0.45514]
[1758853275562,0.1258,3953.5,3952.4,0.75194]
[1758853275563,0.6717,3952.5,3952.4,0.75194]
[1758853275968,0.6717,3952.5,3952.4,41.55194]
[1758853279172,0.6717,3953.0,3952.9,0.48888]
[1758853279366,0.4419,3953.0,3952.9,0.75188]
[1758853279579,0.4419,3953.5,3953.1,0.0338]
[1758853279879,0.7567,3953.9,3953.4,5.27215057]
[1758853280077,0.3161,3953.4,3953.1,0.45505]
[1758853280380,0.7567,3953.2,3953.1,0.45505]
[1758853280578,0.7567,3953.2,3953.1,0.71805]
[1758853280770,0.7567,3953.2,3953.1,41.51805]
[1758853286985,0.3161,3953.2,3953.1,41.51805]
[1758853287585,0.3161,3953.2,3953.1,41.52865]
[1758853287787,0.0094,3953.9,3953.8,0.48878]
[1758853287788,0.3255,3953.9,3953.8,0.48878]
[1758853287989,0.3255,3953.9,3953.8,0.75178]
[1758853288291,0.3161,3953.9,3953.8,0.76238]
[1758853288490,0.4419,3954.0,3953.8,0.76238]
[1758853289088,0.5459,3953.9,3953.8,0.75178]
[1758853289285,0.7567,3953.9,3953.3,0.0106]
[1758853289585,0.7567,3953.9,3953.8,40.8]
[1758853289781,0.45499,3953.8,3953.0,0.45506]
[1758853289977,0.7567,3953.1,3953.0,0.47196]
[1758853290188,0.7567,3953.1,3953.0,41.53396]
[1758853290393,0.1258,3954.0,3953.4,0.0164]
[1758853290579,0.1258,3954.0,3953.9,0.2274]
[1758853290580,0.576,3954.0,3953.9,0.2274]
[1758853290784,0.576,3954.0,3953.9,0.4894]
[1758853291785,0.576,3954.0,3953.9,1.48577]
[1758853291786,0.2295,3954.0,3953.9,1.48577]
[1758853291986,0.5828,3954.0,3953.9,1.15947]
[1758853292494,0.9106,3954.0,3953.9,1.15947]
[1758853293393,0.9106,3954.0,3953.9,41.95947]
[1758853293792,0.9038,3954.5,3954.4,0.68231]
[1758853294095,1.47479925,3954.5,3954.4,0.94431]
[1758853294294,1.47479925,3954.5,3954.4,1.48571]
[1758853294486,0.0249,3954.7,3954.6,1.22369]
[1758853294688,0.3527,3954.7,3954.6,1.22369]
[1758853294888,0.5573,3954.7,3954.6,0.89739]
[1758853295086,0.5573,3954.7,3954.6,1.22369]
[1758853296191,0.3278,3954.7,3954.6,1.22369]
[1758853296495,0.6831,3955.0,3954.9,0.89735]
[1758853296695,1.25436695,3955.0,3954.9,1.15935]
[1758853296895,0.6831,3955.0,3954.9,1.15935]
[1758853297392,0.9038,3955.0,3954.9,0.94425]
[1758853297594,0.9038,3955.0,3954.9,0.71685]
[1758853298101,0.9038,3955.0,3954.9,1.15935]
[1758853299603,1.47532985,3955.0,3954.9,1.15935]
[1758853300107,1.47532985,3955.0,3954.9,0.71685]
[1758853300602,1.47532985,3955.0,3954.9,0.94425]
[1758853300807,1.47532985,3955.0,3954.9,1.15935]
[1758853304006,1.47532985,3955.0,3954.9,0.89735]
[1758853304207,1.47532985,3955.0,3954.9,1.15935]
[1758853306708,0.353,3955.6,3955.5,0.4425]
[1758853306912,0.353,3955.6,3955.5,1.0308]
[1758853307107,0.3278,3955.6,3955.5,41.8308]
[1758853307308,0.3278,3955.6,3955.5,42.28558]
[1758853307512,0.3278,3955.6,3955.5,41.95928]
[1758853307708,0.3278,3955.6,3955.5,42.28558]
[1758853308015,0.3621,3956.0,3955.9,0.89724]
[1758853308205,0.5828,3956.0,3955.9,2.72375515]
[1758853308413,0.9106,3956.0,3955.9,2.50865515]
[1758853309700,0.9106,3956.0,3955.9,2.72375515]
[1758853311119,0.1578,3956.5,3956.4,0.68208]
[1758853311120,0.608,3956.5,3956.4,0.68208]